Workbook

Sheet Vendor Cost Analysis
B3: Vendor Cost Analysis
B6: Part Number
B7: Description
B9: Total Requirements (Units) | E9: 20,000
B10: Number of Vendors | E10: =IF(COUNTA(C15:C19),COUNTA(C15:C19),"") -> 5
B11: Requirement per Vendor | E11: =IF(SUM(E10),ROUND(E9/E10,0),"") -> 4,000
B13: PRICES AND DELIVERY COSTS IN UNITS
C14: Vendor | E14: Bid Price | F14: Delivery | G14: Total
B15: 1. | C15: Vendor | E15: $24 | F15: $1 | G15: =IF(E15,E15+F15,"") -> $24
B16: 2. | C16: Vendor | E16: $21 | F16: $2 | G16: =IF(E16,E16+F16,"") -> $23
B17: 3. | C17: Vendor | E17: $23 | F17: $2 | G17: =IF(E17,E17+F17,"") -> $25
B18: 4. | C18: Vendor | E18: $22 | F18: $1 | G18: =IF(E18,E18+F18,"") -> $23
B19: 5. | C19: Vendor | E19: $22 | F19: $1 | G19: =IF(E19,E19+F19,"") -> 23.45
B20: Average Delivered Price Per Unit | G20: =IF(SUM(G15:G19),SUM(G15:G19)/(5-(G15=0)-(G16=0)-(G17=0)-(G18=0)-(G19=0)),"") -> $23.75
B22: ALLOCATION OF ORDERS AND COSTS
E23: Manual | F23: Delivered | G23: Price vs. | H23: Actual | I23: Amount
C24: Vendor | E24: Override | F24: Price/Unit | G24: Average | H24: Order | I24: of Order
B25: 1. | C25: =IF(CELL("type",C15)="l",C15,"") -> Vendor | E25: 3000 | F25: =IF(SUM(G15),G15,"") -> $24 | G25: =IF(SUM(F25),F25/$G$20,"") -> 103% | H25: =IF(CELL("Type",E25)="v",SUM(E25),IF(SUM(E15)>0,ROUND(SUM(G25)*SUM(E11),2),"")) -> 3000 | I25: =IF(OR(CELL("type",E25)="v",SUM(F25)),SUM(H25)*SUM(F25),"") -> $73,200
B26: 2. | C26: =IF(CELL("type",C16)="l",C16,"") -> Vendor | E26: 10000 | F26: =IF(SUM(G16),G16,"") -> $23 | G26: =IF(SUM(F26),F26/$G$20,"") -> 95% | H26: =IF(CELL("Type",E26)="v",E26,IF(E16>0,ROUND(G26*E11,2),"")) -> 10000 | I26: =IF(OR(CELL("type",E26)="v",SUM(F26)),SUM(H26)*SUM(F26),"") -> $226,500
B27: 3. | C27: =IF(CELL("type",C17)="l",C17,"") -> Vendor | E27: 0 | F27: =IF(SUM(G17),G17,"") -> $25 | G27: =IF(SUM(F27),F27/$G$20,"") -> 104% | H27: =IF(CELL("Type",E27)="v",E27,IF(E17>0,ROUND(G27*E11,2),"")) -> 0 | I27: =IF(OR(CELL("type",E27)="v",SUM(F27)),SUM(H27)*SUM(F27),"") -> $0
B28: 4. | C28: =IF(CELL("type",C18)="l",C18,"") -> Vendor | E28: 7000 | F28: =IF(SUM(G18),G18,"") -> $23 | G28: =IF(SUM(F28),F28/$G$20,"") -> 99% | H28: =IF(CELL("Type",E28)="v",E28,IF(E18>0,ROUND(G28*E11,2),"")) -> 7000 | I28: =IF(OR(CELL("type",E28)="v",SUM(F28)),SUM(H28)*SUM(F28),"") -> $164,150
B29: 5. | C29: =IF(CELL("type",C19)="l",C19,"") -> Vendor | E29: 0 | F29: =IF(SUM(G19),G19,"") -> $23 | G29: =IF(SUM(F29),F29/$G$20,"") -> 99% | H29: =IF(CELL("Type",E29)="v",E29,IF(E19>0,ROUND(G29*E11,2),"")) -> 0 | I29: =IF(OR(CELL("type",E29)="v",SUM(F29)),SUM(H29)*SUM(F29),"") -> 0
B30: ="Total Units "&IF(ABS(SUM(H25:H29)-E9)>0.49,"(Out of Balance by "&FIXED(ABS(SUM(H25:H29)-E9),0,TRUE)&" Units)","") -> Total Units | H30: =IF(SUM(H25:H29),SUM(H25:H29),"") -> 20000
B32: SUMMARY
B33: Total Cost of Orders | E33: =IF(SUM(I25:I29),SUM(I25:I29),"") -> $463,850
B34: Low Bidder Total | E34: =IF(SUM(E33),MIN(BL126:BL130)*E9,"") -> $453,000
B35: Multiple Bid Premium and % | E35: =IF(SUM(E34),E33-E34,"") -> $10,850 | F35: =IF(SUM(E35),E35/E34,"") -> 2.40%
BL124: Intermediate Calculations
BL125: Do Not Change
BL126: =IF(G15=0,MAX($G$15:$G$19),G15) -> 24.4
BL127: =IF(G16=0,MAX($G$15:$G$19),G16) -> 22.65
BL128: =IF(G17=0,MAX($G$15:$G$19),G17) -> 24.8
BL129: =IF(G18=0,MAX($G$15:$G$19),G18) -> 23.45
BL130: =IF(G19=0,MAX($G$15:$G$19),G19) -> 23.45
